fUST/lending_fUST_20250106
["ID","MTS","AMOUNT","RATE_DAILY","PERIOD"]
[347873564,1736175066424,-500.0,0.00022739,3]
[347873565,1736175066434,-1372.75,0.00022739,3]
[347873566,1736175066444,-3744.32,0.00022739,3]
[347873567,1736175066454,-1391.72,0.00022739,3]
[347873568,1736175066463,-15481.08,0.00022739,3]
[347873569,1736175066477,-500.0,0.00022739,3]
[347873570,1736175066486,-500.0,0.00022739,3]
[347873571,1736175066496,-500.0,0.00022739,3]
[347873572,1736175066506,-305.39837781,0.00022739,3]
[347873573,1736175066516,-620.16,0.00022739,3]
[347873574,1736175066526,-603.78,0.00022739,3]
[347873575,1736175066537,-500.0,0.00022739,3]
[347873576,1736175066546,-500.0,0.00022739,3]
[347873577,1736175066556,-500.0,0.00022739,3]
[347873578,1736175066566,-500.0,0.00022795,2]
[347873579,1736175066576,-3951.66002693,0.00022866,2]
[347873580,1736175066585,-2000.0,0.000229,2]
[347873581,1736175066595,-8166.16,0.000229,2]
[347873582,1736175066605,-9848.38,0.000229,14]
[347873583,1736175066614,-153.04,0.000229,31]
[347873584,1736175066625,-153.04,0.000229,31]
[347873585,1736175066634,-153.04,0.000229,31]
[347873586,1736175066644,-153.04,0.000229,31]
[347873587,1736175066653,-153.04,0.000229,31]
[347873588,1736175066663,-153.04,0.000229,31]
[347873589,1736175066672,-151.0,0.000229,2]
[347873590,1736175066682,-1580.701338,0.000229,2]
[347873591,1736175066692,-19825.53287035,0.0002298,2]
[347873592,1736175066701,-73555.20373183,0.0002298,10]
[347873593,1736175066818,-2913.58644193,0.0002298,10]
[347873594,1736175066923,-500.0,0.00019178,2]
[347873595,1736175066933,-500.0,0.00019178,2]
[347873596,1736175066943,-500.0,0.00019452,3]
[347873597,1736175066954,-500.0,0.00019452,3]
[347873598,1736175066963,-500.0,0.00019726,3]
[347873599,1736175066974,-500.0,0.00019726,3]
[347873600,1736175066986,-4767.16,0.00022191,3]
[347873601,1736175066995,-4767.16,0.00022465,3]
[347873602,1736175067004,-4767.16,0.00022739,3]
[347873603,1736175067014,-219581.64381286,0.0002298,10]
[347873604,1736175067023,-29911.9761091,0.0002298,30]
[347873605,1736175067033,-151.0,0.0002298,7]
[347873606,1736175067043,-151.0,0.0002298,7]
[347873607,1736175067053,-151.0,0.0002298,7]
[347873608,1736175067063,-151.0,0.0002298,7]
[347873609,1736175067072,-151.0,0.0002298,7]
[347873610,1736175067081,-155.477722,0.0002298,7]
[347873611,1736175067091,-151.0,0.0002298,7]
[347873612,1736175067101,-151.0,0.0002298,7]
[347873613,1736175067111,-194.960004,0.0002298,7]
[347873614,1736175067120,-177.768228,0.0002298,7]
[347873615,1736175067129,-177.768228,0.0002298,7]
[347873616,1736175067137,-151.0,0.0002298,7]
[347873617,1736175067146,-151.0,0.0002298,7]
[347873618,1736175067157,-151.0,0.0002298,7]
[347873619,1736175067166,-151.0,0.0002298,2]
[347873620,1736175067176,-243.91427001,0.00023,2]
[347873621,1736175067186,-261.3452657,0.00023,2]
[347873622,1736175067196,-33512.84205374,0.00023,2]
[347873623,1736175067206,-9484.54327972,0.00023,60]
[347873624,1736175067217,-897.64225764,0.00023,60]
[347873625,1736175067229,-500.0,0.00023,2]
[347873626,1736175067239,-500.0,0.00023,2]
[347873627,1736175067249,-157.0,0.00023,2]
[347873628,1736175067355,-200.0,0.00023,2]
[347873629,1736175067365,-5164.75756255,0.00023,7]
[347873630,1736175067375,-5164.75756255,0.00023,10]
[347873631,1736175067385,-5164.75756255,0.00023,10]
[347873632,1736175067395,-2231.64208537,0.00023002,2]
[347873633,1736175067405,-1465.22,0.00023013,3]
[347873634,1736175067414,-151.0,0.00023013,7]
[347873635,1736175067424,-500.0,0.00023013,3]
[347873636,1736175067434,-1315.65,0.00023013,3]
[347873637,1736175067444,-500.0,0.00023013,3]
[347873638,1736175067454,-1537.12,0.00023013,3]
[347873639,1736175067463,-500.0,0.00023013,3]
[347873640,1736175067476,-506.91,0.00023013,3]
[347873641,1736175067486,-500.0,0.00023013,3]
[347873642,1736175067496,-1612.14,0.00023013,3]
[347873643,1736175067506,-530.65,0.00023013,3]
[347873644,1736175067516,-2075.94,0.00023013,3]
[347873645,1736175067526,-500.0,0.00023013,3]
[347873646,1736175067536,-1205.22,0.00023013,3]
[347873647,1736175067546,-500.0,0.00023013,3]
[347873648,1736175067555,-500.0,0.00023013,3]
[347873649,1736175067565,-500.0,0.00023013,3]
[347873650,1736175067575,-500.0,0.00023013,3]
[347873651,1736175067585,-1372.75,0.00023013,3]
[347873652,1736175067595,-3744.32,0.00023013,3]
[347873653,1736175067605,-1391.72,0.00023013,3]
[347873654,1736175067615,-15481.08,0.00023013,3]
[347873655,1736175067624,-500.0,0.00023013,3]
[347873656,1736175067634,-500.0,0.00023013,3]
[347873657,1736175067644,-500.0,0.00023013,3]
[347873658,1736175067653,-620.16,0.00023013,3]
[347873659,1736175067663,-603.78,0.00023013,3]
[347873660,1736175067672,-500.0,0.00023013,3]
[347873661,1736175067681,-500.0,0.00023013,3]
[347873662,1736175067691,-500.0,0.00023013,3]
[347873663,1736175067700,-151.0,0.00023048,7]
[347873664,1736175067709,-151.0,0.00023048,7]
[347873665,1736175067718,-151.0,0.00023048,7]
[347873666,1736175067732,-151.0,0.00023048,7]
[347873667,1736175067741,-151.0,0.00023048,7]
[347873668,1736175067749,-151.0,0.00023048,7]
[347873669,1736175067758,-151.0,0.00023048,7]
[347873670,1736175067767,-180.430181,0.00023048,7]
[347873671,1736175067776,-151.0,0.00023048,7]
[347873672,1736175067786,-151.0,0.00023048,7]
[347873673,1736175067796,-151.0,0.00023048,7]
[347873674,1736175067805,-151.0,0.00023048,7]
[347873675,1736175067815,-205.54055,0.00023048,7]
[347873676,1736175067825,-266.215716,0.0002305,2]
[347873677,1736175067835,-151.0,0.00023057,7]
[347873678,1736175067845,-151.0,0.00023057,7]
[347873679,1736175067854,-151.0,0.00023057,7]
[347873680,1736175067863,-151.0,0.00023057,7]
[347873681,1736175067873,-151.0,0.00023057,7]
[347873682,1736175067882,-151.0,0.00023057,7]
[347873683,1736175067892,-151.0,0.00023057,7]
[347873684,1736175067901,-177.768228,0.00023057,7]
[347873685,1736175067911,-177.768228,0.00023057,7]
[347873686,1736175067921,-177.768228,0.00023057,7]
[347873687,1736175067930,-177.768228,0.00023057,7]
[347873688,1736175067939,-177.768228,0.00023057,7]
[347873689,1736175067948,-177.768237,0.00023057,7]
[347873690,1736175067957,-280.321612,0.00023057,7]
[347873691,1736175067967,-151.0,0.00023057,7]
[347873692,1736175067980,-151.0,0.00023059,7]
[347873693,1736175067990,-151.0,0.00023059,7]
[347873694,1736175067999,-151.0,0.00023059,7]
[347873695,1736175068010,-151.0,0.00023059,7]
[347873696,1736175068019,-151.0,0.00023059,7]
[347873697,1736175068029,-151.0,0.00023059,7]
[347873698,1736175068038,-153.6400067,0.00023068,2]
[347873699,1736175068047,-500.0,0.00023069,2]
[347873700,1736175068057,-3951.66002693,0.00023072,2]
[347873701,1736175068066,-307.018901,0.00023096,2]
[347873702,1736175068074,-352.9020598,0.00023096,2]
[347873703,1736175068084,-214.4016801,0.00023096,2]
[347873704,1736175068093,-5164.75756255,0.000231,7]
[347873705,1736175068103,-304811.9750865,0.00023102,10]
[347873706,1736175068117,-194292.38744172,0.00023102,10]
[347873709,1736175121935,400.0,0.00025,120]
[347873710,1736175128496,165.172387,0.00013973,2]
[347873721,1736175872380,5460.34,0.0001505,2]
[347873723,1736176010631,165.172387,0.00013973,2]
[347873725,1736176092994,1509.84202661,0.00013,2]
[347873830,1736176232316,-849.50299854,0.00017199,2]
[347873831,1736176232326,-2085.7195245,0.00017373,2]
[347873833,1736176232336,-4418.5937072,0.0001779,2]
[347873836,1736176232345,-250.0,0.00017828,2]
[347873838,1736176232355,-391.5289171,0.00017828,2]
[347873840,1736176232365,-300.0,0.00018288,2]
[347873842,1736176232374,-8046.78046784,0.00018289,2]
[347873844,1736176232386,-16853.21953216,0.00018289,2]
[347873846,1736176232395,-167.23832588,0.000188,2]
[347873848,1736176232404,-1161.63152509,0.000189,2]
[347873850,1736176232413,-192.247,0.00018936,2]
[347873852,1736176232423,-234.84,0.00018936,2]
[347873854,1736176232432,-5000.0,0.00019,2]
[347873856,1736176232442,-302.90913937,0.00019,2]
[347873858,1736176232451,-4431.37469877,0.00019078,2]
[347873860,1736176232461,-6869.94288009,0.00019078,2]
[347873862,1736176232470,-378.20294654,0.00019173,2]
[347873864,1736176232480,-491.53985651,0.00019173,2]
[347873865,1736176232490,-573.02359037,0.00019173,2]
[347873867,1736176232507,-582.77319186,0.00019173,2]
[347873870,1736176232517,-501.688485,0.00019173,2]
[347873872,1736176232526,-151.17667941,0.00019173,2]
[347873874,1736176232536,-500.0,0.00019173,2]
[347873876,1736176232546,-466.44897288,0.00019173,2]
[347873878,1736176232556,-500.90628145,0.00019173,2]
[347873880,1736176232566,-500.0,0.00019173,2]
[347873882,1736176232576,-500.88750972,0.00019173,2]
[347873884,1736176232585,-249.55386785,0.00019173,2]
[347873886,1736176232595,-500.0,0.00019173,2]
[347873888,1736176232605,-202.64035165,0.00019173,2]
[347873890,1736176232615,-150.0,0.00019177,2]
[347873892,1736176232625,-500.0,0.00019177,2]
[347873894,1736176232635,-303.85857806,0.00019177,2]
[347873896,1736176232645,-366.74873834,0.00019177,2]
[347873898,1736176232655,-529.92502878,0.00019177,2]
[347873900,1736176232665,-324.79548526,0.00019177,2]
[347873903,1736176232676,-500.0,0.00019177,2]
[347873906,1736176232687,-500.0,0.00019177,2]
[347873909,1736176232696,-500.0,0.00019177,2]
[347873912,1736176232706,-437.66744333,0.00019177,2]
[347873916,1736176232719,-62.33255667,0.00019177,2]
[347873919,1736176232729,-449.10533628,0.00019177,2]
[347873922,1736176232739,-500.0,0.00019177,2]
[347873924,1736176232757,-500.0,0.00019177,2]
[347873928,1736176232768,-500.0,0.00019177,2]
[347873931,1736176232778,-500.0,0.00019178,2]
[347873934,1736176232788,-500.0,0.00019178,2]
[347873937,1736176232799,-503.3613832,0.00019178,2]
[347873939,1736176232809,-500.0,0.00019178,2]
[347873941,1736176232819,-506.99176617,0.00019178,2]
[347873943,1736176232828,-500.0,0.00019178,2]
[347873944,1736176232838,-500.0,0.00019178,2]
[347873946,1736176232848,-500.0,0.00019178,2]
[347873948,1736176232857,-500.0,0.00019178,2]
[347873950,1736176232867,-500.0,0.00019178,2]
[347873952,1736176232876,-500.0,0.00019178,2]
[347873954,1736176232886,-501.15066035,0.00019178,2]
[347873956,1736176232895,-501.84504299,0.00019178,2]
[347873958,1736176232905,-500.0,0.00019178,2]
[347873960,1736176232915,-500.0,0.00019178,2]
[347873962,1736176232924,-500.0,0.00019178,2]
[347873964,1736176232934,-511.28100308,0.00019178,2]
[347873966,1736176232943,-500.0,0.00019178,2]
[347873968,1736176232955,-509.16917601,0.00019178,2]
[347873970,1736176232966,-501.08949703,0.00019178,2]
[347873972,1736176232975,-500.80515919,0.00019178,2]
[347873973,1736176232985,-500.50647208,0.00019178,2]
[347873975,1736176233000,-153.56970444,0.00019178,2]
[347873977,1736176233010,-500.45842542,0.00019178,2]
[347873979,1736176233023,-500.0,0.00019178,2]
[347873982,1736176233033,-500.0,0.00019178,2]
[347873983,1736176233043,-500.0,0.00019178,2]
[347873984,1736176233053,-500.0,0.00019178,2]
[347873986,1736176233064,-500.0,0.00019178,2]
[347873988,1736176233074,-500.0,0.00019178,2]
[347873990,1736176233085,-456.30390158,0.00019178,2]
[347873992,1736176233097,-500.0,0.00019178,2]
[347873994,1736176233107,-503.72501014,0.00019178,2]
[347873996,1736176233117,-500.0,0.00019178,2]
[347873998,1736176233128,-500.0,0.00019178,2]
[347874000,1736176233139,-500.0,0.00019178,2]
[347874002,1736176233151,-580.76516829,0.00019178,2]
[347874004,1736176233162,-500.0,0.00019178,2]
[347874006,1736176233172,-244.75750517,0.00019178,2]
[347874008,1736176233184,-500.0,0.00019178,2]
[347874010,1736176233196,-500.0,0.00019178,2]
[347874012,1736176233207,-500.0,0.00019178,2]
[347874014,1736176233217,-500.0,0.00019178,2]
[347874016,1736176233228,-500.0,0.00019178,2]
[347874018,1736176233238,-500.0,0.00019178,2]
[347874020,1736176233262,-500.0,0.00019178,2]
[347874022,1736176233272,-500.0,0.00019178,2]
[347874024,1736176233282,-500.0,0.00019178,2]
[347874026,1736176233294,-500.45340423,0.00019178,2]
[347874027,1736176233305,-500.0,0.00019178,2]
[347874029,1736176233317,-500.0,0.00019178,2]
[347874031,1736176233329,-500.0,0.00019178,2]
[347874033,1736176233339,-500.0,0.00019178,2]
[347874035,1736176233351,-500.0,0.00019178,2]
[347874037,1736176233362,-500.0,0.00019178,2]
[347874039,1736176233373,-500.0,0.00019178,2]
[347874041,1736176233386,-500.0,0.00019178,2]
[347874042,1736176233397,-500.65665988,0.00019178,2]
[347874044,1736176233408,-500.0,0.00019178,2]
[347874046,1736176233419,-500.0,0.00019178,2]
[347874048,1736176233430,-500.0,0.00019178,2]
[347874050,1736176233442,-500.0,0.00019178,2]
[347874052,1736176233453,-195.455,0.00019178,2]
[347874054,1736176233463,-500.0,0.00019178,2]
[347874056,1736176233474,-500.0,0.00019178,2]
[347874058,1736176233485,-500.0,0.00019178,2]
[347874060,1736176233502,-500.0,0.00019178,2]
[347874062,1736176233512,-500.0,0.00019178,2]
[347874064,1736176233524,-500.0,0.00019178,2]
[347874066,1736176233534,-500.0,0.00019178,2]
[347874068,1736176233546,-500.0,0.00019178,2]
[347874070,1736176233556,-500.0,0.00019178,2]
[347874072,1736176233567,-500.0,0.00019178,2]
[347874074,1736176233577,-500.0,0.00019178,2]
[347874076,1736176233589,-500.0,0.00019178,2]
[347874077,1736176233599,-500.0,0.00019178,2]
[347874079,1736176233609,-500.0,0.00019178,2]
[347874081,1736176233620,-500.0,0.00019178,2]
[347874083,1736176233629,-170.55145973,0.00019178,2]
[347874085,1736176233640,-500.0,0.00019178,2]
[347874087,1736176233651,-500.0,0.00019178,2]
[347874089,1736176233661,-500.0,0.00019178,2]
[347874091,1736176233671,-500.0,0.00019178,2]
[347874093,1736176233682,-500.0,0.00019178,2]
[347874095,1736176233692,-500.0,0.00019178,2]
[347874097,1736176233703,-500.0,0.00019178,2]
[347874099,1736176233713,-500.0,0.00019178,2]
[347874101,1736176233724,-500.0,0.00019178,2]
[347874103,1736176233735,-500.0,0.00019178,2]
[347874104,1736176233752,-500.0,0.00019178,2]
[347874106,1736176233764,-500.0,0.00019178,2]
[347874108,1736176233776,-500.0,0.00019178,2]
[347874110,1736176233787,-500.0,0.00019178,2]
[347874112,1736176233799,-500.0,0.00019178,2]
[347874114,1736176233809,-500.0,0.00019178,2]
[347874116,1736176233820,-500.0,0.00019178,2]
[347874118,1736176233830,-500.0,0.00019178,2]
[347874120,1736176233842,-500.0,0.00019178,2]
[347874122,1736176233853,-500.0,0.00019178,2]
[347874124,1736176233865,-500.0,0.00019178,2]
[347874126,1736176233875,-500.0,0.00019178,2]
[347874128,1736176233886,-500.0,0.00019178,2]
[347874130,1736176233897,-500.0,0.00019178,2]
[347874141,1736176234024,-500.0,0.00019178,2]
[347874144,1736176234037,-500.0,0.00019178,2]
[347874146,1736176234048,-500.0,0.00019178,2]
[347874148,1736176234059,-500.0,0.00019178,2]
[347874150,1736176234070,-500.0,0.00019178,2]
[347874152,1736176234081,-500.0,0.00019178,2]
[347874154,1736176234092,-373.38702149,0.00019178,2]
[347874156,1736176234104,-500.0,0.00019178,2]
[347874158,1736176234115,-500.0,0.00019178,2]
[347874160,1736176234127,-500.47969982,0.00019178,2]
[347874162,1736176234137,-500.0,0.00019178,2]
[347874164,1736176234148,-500.0,0.00019178,2]
[347874166,1736176234158,-500.0,0.00019178,2]
[347874168,1736176234169,-500.0,0.00019178,2]
[347874169,1736176234180,-500.0,0.00019178,2]
[347874171,1736176234190,-500.0,0.00019178,2]
[347874173,1736176234201,-500.0,0.00019178,2]
[347874175,1736176234211,-500.0,0.00019178,2]
[347874177,1736176234222,-500.0,0.00019178,2]
[347874179,1736176234233,-500.0,0.00019178,2]
[347874181,1736176234251,-500.0,0.00019178,2]
[347874183,1736176234262,-500.0,0.00019178,2]
[347874185,1736176234273,-500.0,0.00019178,2]
[347874187,1736176234285,-480.73133406,0.00019178,2]
[347874189,1736176234295,-500.0,0.00019178,2]
[347874191,1736176234306,-500.0,0.00019178,2]
[347874193,1736176234317,-500.0,0.00019178,2]
[347874195,1736176234329,-500.0,0.00019178,2]
[347874197,1736176234341,-500.0,0.00019178,2]
[347874199,1736176234351,-500.0,0.00019178,2]
[347874201,1736176234361,-500.0,0.00019178,2]
[347874203,1736176234372,-500.0,0.00019178,2]
[347874205,1736176234383,-500.0,0.00019178,2]
[347874207,1736176234394,-505.37404848,0.00019178,2]
[347874209,1736176234405,-500.0,0.00019178,2]
[347874211,1736176234416,-500.0,0.00019178,2]
[347874213,1736176234426,-500.0,0.00019178,2]
[347874215,1736176234438,-500.0,0.00019178,2]
[347874217,1736176234449,-500.0,0.00019178,2]
[347874219,1736176234460,-500.0,0.00019178,2]
[347874221,1736176234470,-500.0,0.00019178,2]
[347874223,1736176234482,-500.0,0.00019178,2]
[347874225,1736176234497,-500.0,0.00019178,2]
[347874227,1736176234508,-500.0,0.00019178,2]
[347874229,1736176234518,-500.0,0.00019178,2]
[347874231,1736176234529,-504.65186983,0.00019178,2]
[347874233,1736176234539,-500.0,0.00019178,2]
[347874235,1736176234549,-500.0,0.00019178,2]
[347874237,1736176234559,-500.0,0.00019178,2]
[347874239,1736176234569,-500.0,0.00019178,2]
[347874241,1736176234579,-500.0,0.00019178,2]
[347874243,1736176234589,-500.0,0.00019178,2]
[347874245,1736176234599,-500.0,0.00019178,2]
[347874247,1736176234610,-510.7236771,0.00019178,2]
[347874249,1736176234620,-500.0,0.00019178,2]
[347874251,1736176234630,-500.0,0.00019178,2]
[347874253,1736176234641,-1000.0,0.00019178,2]
[347874256,1736176234652,-437.98072495,0.00019178,2]
[347874258,1736176234662,-500.0,0.00019178,2]
[347874260,1736176234672,-500.0,0.00019178,2]
[347874261,1736176234681,-510.04406223,0.00019178,2]
[347874263,1736176234691,-500.0,0.00019178,2]
[347874265,1736176234701,-500.0,0.00019178,2]
[347874267,1736176234711,-500.0,0.00019178,2]
[347874269,1736176234721,-500.0,0.00019178,2]
[347874271,1736176234732,-500.0,0.00019178,2]
[347874274,1736176234747,-500.0,0.00019178,2]
[347874276,1736176234757,-500.0,0.00019178,2]
[347874277,1736176234768,-500.0,0.00019178,2]
[347874280,1736176234778,-500.0,0.00019178,2]
[347874282,1736176234789,-500.0,0.00019178,2]
[347874283,1736176234800,-500.0,0.00019178,2]
[347874286,1736176234810,-500.0,0.00019178,2]
[347874287,1736176234820,-500.0,0.00019178,2]
[347874289,1736176234831,-500.0,0.00019178,2]
[347874291,1736176234841,-500.0,0.00019178,2]
[347874293,1736176234851,-5388.49,0.00019178,2]
[347874295,1736176234861,-500.0,0.00019178,2]
[347874297,1736176234872,-500.0,0.00019178,2]
[347874299,1736176234883,-500.0,0.00019178,2]
[347874301,1736176234892,-5388.49,0.00019178,2]
[347874303,1736176234902,-5388.49,0.00019178,2]
[347874305,1736176234911,-500.0,0.00019178,2]
[347874307,1736176234921,-5388.49,0.00019178,2]
[347874309,1736176234931,-500.0,0.00019178,2]
[347874311,1736176234940,-500.0,0.00019178,2]
[347874313,1736176234949,-5388.49,0.00019178,2]
[347874315,1736176234960,-500.0,0.00019178,2]
[347874317,1736176234970,-500.0,0.00019178,2]
[347874319,1736176234980,-5388.49,0.00019178,2]
[347874321,1736176234989,-5388.49,0.00019178,2]
[347874323,1736176235004,-500.0,0.00019178,2]
[347874325,1736176235018,-5388.49,0.00019178,2]
[347874327,1736176235029,-500.0,0.00019178,2]
[347874329,1736176235038,-5388.49,0.00019178,2]
[347874331,1736176235047,-359.0819897,0.00019178,2]
[347874453,1736176237954,-500.0,0.00019177,2]
[347874455,1736176237965,-349.58144048,0.00019177,2]
[347874457,1736176237975,-140.9180103,0.00019178,2]
[347874459,1736176237984,-3873.27187922,0.00019178,2]
[347874461,1736176237999,-929.22526094,0.00019178,2]
[347874463,1736176238015,-585.99285984,0.00019178,2]
[347874465,1736176238024,-5388.49,0.00019178,2]
[347874467,1736176238036,-535.39609782,0.00019178,2]
[347874469,1736176238046,-1005.12102087,0.00019178,2]
[347874471,1736176238057,-4383.36897913,0.00019178,2]
[347874473,1736176238066,-500.0,0.00019178,2]
[347874475,1736176238075,-500.0,0.00019178,2]
[347874477,1736176238084,-500.0,0.00019178,2]
[347874479,1736176238093,-500.0,0.00019178,2]
[347874481,1736176238102,-500.0,0.00019178,2]
[347874483,1736176238111,-500.0,0.00019178,2]
[347874485,1736176238121,-500.0,0.00019178,2]
[347874487,1736176238130,-500.0,0.00019178,2]
[347874489,1736176238139,-500.0,0.00019178,2]
[347874491,1736176238148,-500.0,0.00019178,2]
[347874493,1736176238158,-500.0,0.00019178,2]
[347874495,1736176238167,-500.0,0.00019178,2]
[347874497,1736176238177,-500.0,0.00019178,2]
[347874499,1736176238186,-500.0,0.00019178,2]
[347874501,1736176238196,-500.0,0.00019178,2]
[347874503,1736176238205,-178.07811244,0.00019178,2]
[347874505,1736176238217,-321.92188756,0.00019178,2]
[347874507,1736176238226,-500.0,0.00019178,2]
[347874509,1736176238235,-500.0,0.00019178,2]
[347874511,1736176238246,-321.78427328,0.00019178,2]
[347874513,1736176238260,-500.0,0.00019178,2]
[347874515,1736176238269,-500.0,0.00019178,2]
[347874518,1736176238279,-500.0,0.00019178,2]
[347874519,1736176238288,-500.88464733,0.00019178,2]
[347874521,1736176238297,-500.0,0.00019178,2]
[347874523,1736176238306,-500.0,0.00019178,2]
[347874525,1736176238316,-505.68100544,0.00019178,2]
[347874527,1736176238325,-500.0,0.00019178,2]
[347874529,1736176238334,-500.0,0.00019178,2]
[347874531,1736176238343,-500.0,0.00019178,2]
[347874533,1736176238352,-500.0,0.00019178,2]
[347874535,1736176238362,-500.0,0.00019178,2]
[347874537,1736176238372,-500.0,0.00019178,2]
[347874539,1736176238381,-500.0,0.00019178,2]
[347874541,1736176238391,-500.0,0.00019178,2]
[347874543,1736176238400,-500.0,0.00019178,2]
[347874545,1736176238409,-500.0,0.00019178,2]
[347874547,1736176238418,-502.23962418,0.00019178,2]
[347874549,1736176238428,-500.0,0.00019178,2]
[347874551,1736176238437,-506.98079391,0.00019178,2]
[347874553,1736176238449,-500.0,0.00019178,2]
[347874555,1736176238459,-216.98883663,0.00019178,2]
[347874558,1736176238473,-283.01116337,0.00019178,2]
[347874560,1736176238483,-500.0,0.00019178,2]
[347874562,1736176238493,-500.0,0.00019178,2]
[347874564,1736176238518,-500.0,0.00019178,2]
[347874566,1736176238530,-500.0,0.00019178,2]
[347874568,1736176238540,-224.29944625,0.00019178,2]
[347874570,1736176238550,-500.0,0.00019178,2]
[347874572,1736176238560,-500.0,0.00019178,2]
[347874574,1736176238569,-229.3476462,0.00019178,2]
[347874576,1736176238581,-270.6523538,0.00019178,2]
[347874578,1736176238591,-500.0,0.00019178,2]
[347874580,1736176238600,-500.0,0.00019178,2]
[347874582,1736176238610,-175.71758029,0.00019178,2]
[347874585,1736176238622,-324.28241971,0.00019178,2]
[347874587,1736176238640,-200.0,0.00019178,2]
[347874589,1736176238650,-500.0,0.00019178,2]
[347874591,1736176238659,-500.0,0.00019178,2]
[347874593,1736176238669,-500.0,0.00019178,2]
[347874595,1736176238679,-500.0,0.00019178,2]
[347874597,1736176238688,-500.0,0.00019178,2]
[347874599,1736176238698,-500.0,0.00019178,2]
[347874601,1736176238707,-500.0,0.00019178,2]
[347874603,1736176238716,-500.0,0.00019178,2]
[347874605,1736176238725,-500.0,0.00019178,2]
[347874607,1736176238735,-500.0,0.00019178,2]
[347874609,1736176238744,-500.0,0.00019178,2]
[347874611,1736176238760,-612.01,0.00019178,2]
[347874613,1736176238773,-612.01,0.00019178,2]
[347874615,1736176238784,-612.01,0.00019178,2]
[347874617,1736176238794,-612.01,0.00019178,2]
[347874620,1736176238805,-612.01,0.00019178,2]
[347874621,1736176238814,-612.01,0.00019178,2]
[347874624,1736176238824,-612.01,0.00019178,2]
[347874626,1736176238834,-612.01,0.00019178,2]
[347874628,1736176238844,-612.01,0.00019178,2]
[347874630,1736176238855,-612.01,0.00019178,2]
[347874632,1736176238864,-612.01,0.00019178,2]
[347874634,1736176238875,-612.01,0.00019178,2]
[347874636,1736176238885,-500.0,0.00019178,2]
[347874638,1736176238895,-500.0,0.00019178,2]
[347874640,1736176238905,-500.0,0.00019178,2]
[347874642,1736176238914,-500.0,0.00019178,2]
[347874644,1736176238923,-249.12937602,0.00019178,2]
[347874646,1736176238933,-503.30502933,0.00019178,2]
[347874648,1736176238942,-500.0,0.00019178,2]
[347874650,1736176238952,-500.0,0.00019178,2]
[347874652,1736176238961,-500.0,0.00019178,2]
[347874654,1736176238971,-500.0,0.00019178,2]
[347874656,1736176238980,-500.0,0.00019178,2]
[347874658,1736176238990,-500.0,0.00019178,2]
[347874660,1736176239004,-508.25516135,0.00019178,2]
[347874662,1736176239012,-500.0,0.00019178,2]
[347874664,1736176239028,-500.0,0.00019178,2]
[347874666,1736176239037,-503.81517771,0.00019178,2]
[347874668,1736176239047,-500.0,0.00019178,2]
[347874670,1736176239056,-475.58579229,0.00019178,2]